bitfinex/quotes_SOLUSD_20241008
["timestamp","ask_amount","ask_price","bid_price","bid_amount"]
[1728385031604,0.12549,144.3,144.22,37.18253135]
[1728385031605,6.932,144.26,144.22,37.18253135]
[1728385031918,6.932,144.26,144.22,24.267]
[1728385032916,6.932,144.26,144.23,8.31971638]
[1728385034618,6.932,144.26,144.23,6.9332]
[1728385036802,6.932,144.26,144.23,8.31969282]
[1728385037109,6.9325,144.25,144.22,24.267]
[1728385038518,6.932,144.26,144.23,1.3865682]
[1728385039222,6.932,144.26,144.22,25.65353377]
[1728385043329,6.932,144.26,144.22,24.99884556]
[1728385043528,15.2922,144.28,144.24,6.9328]
[1728385043529,22.2234,144.28,144.24,6.9328]
[1728385043918,22.2234,144.28,144.25,6.9323]
[1728385044330,22.2234,144.28,144.24,6.9327]
[1728385049157,22.2234,144.28,144.24,13.2136946]
[1728385050263,22.2234,144.28,144.24,14.60004156]
[1728385050631,22.2234,144.28,144.24,6.9327]
[1728385051139,22.2234,144.28,144.25,8.31857808]
[1728385051334,22.2234,144.28,144.25,6.9323]
[1728385051934,6.9308,144.29,144.25,6.9323]
[1728385052847,6.9308,144.29,144.26,6.9318]
[1728385053749,6.9303,144.3,144.26,6.9318]
[1728385054336,6.9303,144.3,144.26,8.31791633]
[1728385054536,6.9303,144.3,144.26,6.9318]
[1728385054745,6.9303,144.3,144.27,1.3861205]
[1728385054964,6.9303,144.3,144.26,6.9318]
[1728385055643,6.9303,144.3,144.25,17.3306]
[1728385055644,6.9296,144.31,144.27,8.3174691]
[1728385055846,6.93,144.3,144.27,1.3860691]
[1728385056960,6.93,144.3,144.26,13.20749063]
[1728385057359,6.93,144.3,144.26,6.9317]
[1728385057657,17.3188,144.36,144.29,6.9304]
[1728385057862,17.3188,144.36,144.27,37.3285]
[1728385057863,17.3188,144.36,144.3,1.38574404]
[1728385058162,6.9282,144.34,144.3,6.9299]
[1728385058359,6.9282,144.34,144.29,24.2562]
[1728385058942,6.9287,144.33,144.29,24.2562]
[1728385059452,6.9287,144.33,144.29,17.326]
[1728385059981,6.9287,144.33,144.3,1.38589308]
[1728385060176,6.9287,144.33,144.29,24.2561]
[1728385061168,17.3188,144.36,144.29,17.326]
[1728385061379,6.929,144.32,144.29,17.326]
[1728385062168,6.9287,144.33,144.29,18.71189407]
[1728385062571,6.9287,144.33,144.29,25.64199407]
[1728385063052,6.9282,144.34,144.3,6.9299]
[1728385063665,6.9282,144.34,144.31,1.38576336]
[1728385065282,6.9282,144.34,144.3,6.9299]
[1728385067957,6.9285,144.33,144.29,17.326]
[1728385068165,6.9285,144.33,144.29,24.2564]
[1728385072783,6.929,144.32,144.29,24.2564]
[1728385072970,6.929,144.32,144.29,17.326]
[1728385073279,6.9287,144.33,144.29,24.2564]
[1728385076286,6.9296,144.31,144.28,6.9308]
[1728385076456,6.9296,144.31,144.26,40.1654]
[1728385076457,6.9297,144.31,144.27,35.58917833]
[1728385076781,6.9297,144.31,144.27,30.707984]
[1728385078481,6.9297,144.31,144.27,6.9311]
[1728385080091,6.93,144.3,144.27,6.9311]
[1728385080279,6.9296,144.31,144.27,6.9311]
[1728385082293,6.9301,144.3,144.27,6.9311]
[1728385082504,6.9301,144.3,144.26,47.0972]
[1728385086093,6.9301,144.3,144.27,4.88636857]
[1728385086888,6.9301,144.3,144.26,48.48335079]
[1728385087208,17.3205,144.34,144.26,48.48335079]
[1728385087209,6.9296,144.31,144.27,6.9314]
[1728385087405,6.9296,144.31,144.28,1.38602761]
[1728385088404,6.9296,144.31,144.27,6.9314]
[1728385088593,6.9296,144.31,144.28,1.3860069]
[1728385088803,27.32038114,144.35,144.29,6.93]
[1728385088986,0.12549,144.35,144.29,6.93]
[1728385089387,6.9288,144.33,144.29,6.93]
[1728385091901,6.9291,144.32,144.29,6.93]
[1728385092101,0.12549,144.35,144.28,31.62863825]
[1728385092291,20.0,144.36,144.3,6.9298]
[1728385092905,6.9286,144.33,144.3,6.9298]
[1728385093609,6.9286,144.33,144.29,6.9301]
[1728385093815,20.0,144.36,144.29,6.9301]
[1728385094034,6.9291,144.32,144.29,6.9301]
[1728385094202,6.9297,144.31,144.28,17.3271]
[1728385094529,17.3193,144.35,144.26,22.8367]
[1728385094530,6.93,144.3,144.26,29.7682]
[1728385094901,6.93,144.3,144.26,22.8367]
[1728385095713,6.9309,144.28,144.26,22.8367]
[1728385096915,6.9314,144.27,144.26,22.8367]
[1728385097519,17.3241,144.31,144.24,12.91553135]
[1728385097694,17.3241,144.31,144.22,39.1687]
[1728385097695,6.9319,144.26,144.23,32.91553135]
[1728385097898,6.9319,144.26,144.24,5.3113392]
[1728385098203,6.9319,144.26,144.24,1.38629146]
[1728385098906,6.9319,144.26,144.23,32.91553135]
[1728385099107,6.9319,144.26,144.24,3.92518892]
[1728385099319,6.9319,144.26,144.23,32.91553135]
[1728385099525,6.9319,144.26,144.24,3.92537363]
[1728385099713,6.9319,144.26,144.23,32.91553135]
[1728385099905,6.9319,144.26,144.24,3.92531652]
[1728385100231,6.9319,144.26,144.25,1.38628463]
[1728385100400,6.9319,144.26,144.24,16.84079132]
[1728385100606,6.9319,144.26,144.24,12.91553135]
[1728385101531,6.9319,144.26,144.23,32.91553135]
[1728385101729,6.9319,144.26,144.24,3.92556034]
[1728385101928,6.9319,144.26,144.23,32.91553135]
[1728385102143,6.9319,144.26,144.24,3.92556034]
[1728385102320,6.9319,144.26,144.23,32.91553135]
[1728385102519,6.9319,144.26,144.24,3.92482446]
[1728385102720,6.9319,144.26,144.23,32.91553135]
[1728385102919,6.9319,144.26,144.24,3.92412915]
[1728385103121,6.9319,144.26,144.23,32.91553135]
[1728385103338,6.9319,144.26,144.24,3.92429698]
[1728385103529,6.9319,144.26,144.23,32.91553135]
[1728385103730,6.9319,144.26,144.24,3.92370395]
[1728385103940,6.9319,144.26,144.23,32.91553135]
[1728385104139,6.9319,144.26,144.24,5.31022933]
[1728385104422,6.9319,144.26,144.24,5.30958522]
[1728385104850,6.9319,144.26,144.24,7.84659269]
[1728385105150,6.9319,144.26,144.24,3.92328978]
[1728385106049,20.25098,144.32,144.24,3.92328978]
[1728385106253,20.12549,144.3,144.23,3.92328978]
[1728385106553,6.9333,144.23,144.22,21.8351]
[1728385106751,6.9333,144.23,144.22,25.75802688]
[1728385107336,6.9333,144.23,144.22,21.8351]
[1728385107735,6.9333,144.23,144.21,12.91553135]
[1728385107932,6.9338,144.22,144.21,12.91553135]
[1728385108137,6.9334,144.23,144.21,12.91553135]
[1728385108440,6.9334,144.23,144.21,16.83808248]
[1728385108937,6.9334,144.23,144.21,12.91553135]
[1728385110833,6.9334,144.23,144.22,1.38654541]
[1728385114049,6.9334,144.23,144.21,12.91553135]
[1728385114358,6.9334,144.23,144.2,36.69241535]
[1728385115254,6.9334,144.23,144.21,1.38655224]
[1728385116056,6.9334,144.23,144.2,23.776884]
[1728385117857,6.9338,144.22,144.19,39.3442]
[1728385118363,6.9338,144.22,144.18,18.98863135]
[1728385118364,6.9348,144.2,144.18,6.0731]
[1728385119841,6.9348,144.2,144.18,20.0]
[1728385120161,6.9348,144.2,144.18,1.38688647]
[1728385120377,6.9352,144.19,144.16,37.19253135]
[1728385121461,6.9343,144.21,144.17,45.01532408]
[1728385122045,6.9343,144.21,144.17,43.62841535]
[1728385123968,17.3325,144.24,144.17,6.936]
[1728385124142,17.335,144.22,144.16,23.776884]
[1728385124344,6.9357,144.18,144.15,28.24173135]
[1728385124542,6.9357,144.18,144.15,22.2633]
[1728385124761,6.9354,144.19,144.15,22.2633]
[1728385126469,6.9354,144.19,144.15,35.17883135]
[1728385127586,6.9354,144.19,144.16,1.38703888]
[1728385133901,15.3109,144.24,144.16,21.23917023]
[1728385133902,6.9351,144.2,144.16,21.23917023]
[1728385134054,6.9345,144.21,144.17,19.85163135]
[1728385134254,6.9345,144.21,144.18,1.38687751]
[1728385137155,6.9352,144.19,144.16,6.9364]
[1728385137564,6.9352,144.19,144.15,22.2631]
[1728385138269,6.9352,144.19,144.15,6.9369]
[1728385138469,6.9352,144.19,144.15,19.85243135]
[1728385140088,6.9363,144.17,144.14,24.2808]
[1728385140457,6.936,144.18,144.14,24.2808]
[1728385140881,6.936,144.18,144.15,1.3871763]
[1728385144586,6.9355,144.19,144.15,21.23962433]
[1728385145976,17.3359,144.21,144.15,19.85243135]
[1728385146191,6.9357,144.18,144.15,6.9369]
[1728385147492,6.9357,144.18,144.14,37.19633135]
[1728385148377,6.9362,144.17,144.14,37.19633135]
[1728385148580,6.9362,144.17,144.14,17.3433]
[1728385149874,6.9362,144.17,144.15,1.38719711]
[1728385151201,6.9354,144.19,144.15,14.30272846]
[1728385151502,6.9354,144.19,144.15,21.23952846]
[1728385154706,6.9347,144.21,144.18,6.9357]
[1728385155008,6.9347,144.21,144.19,1.38696385]
[1728385155804,6.9348,144.2,144.17,19.85163135]
[1728385156396,6.9348,144.2,144.16,30.25733135]
[1728385156597,6.9353,144.19,144.16,37.19393135]
[1728385157306,20.0,144.23,144.16,37.19393135]
[1728385157489,6.9349,144.2,144.16,37.19393135]
[1728385159114,6.9349,144.2,144.17,1.38694818]
[1728385159606,6.9349,144.2,144.16,37.19393135]
[1728385161995,6.9349,144.2,144.16,24.2784]
[1728385163400,6.9349,144.2,144.17,3.93524168]
[1728385163602,6.9349,144.2,144.16,24.2784]
[1728385163899,6.9349,144.2,144.17,3.93524168]
[1728385164202,6.9349,144.2,144.16,24.2784]
[1728385164393,6.9349,144.2,144.17,3.93620856]
[1728385164610,20.0,144.23,144.16,30.5763337]
[1728385164788,6.9352,144.19,144.17,3.93620397]
[1728385164990,6.9352,144.19,144.16,30.5763337]
[1728385165302,6.9352,144.19,144.17,3.93622384]
[1728385165504,6.9352,144.19,144.16,30.5763337]
[1728385165805,6.9352,144.19,144.17,3.93720594]
[1728385166101,6.9352,144.19,144.16,30.5763337]
[1728385167111,6.9352,144.19,144.17,1.3869635]
[1728385169726,6.9352,144.19,144.16,24.2784]
[1728385170622,6.9352,144.19,144.16,17.3418]
[1728385170829,6.9352,144.19,144.16,22.49970053]
[1728385171503,6.9352,144.19,144.16,17.3418]
[1728385175941,6.9352,144.19,144.17,5.16318855]
[1728385176106,6.9352,144.19,144.16,17.3418]
[1728385176302,6.9352,144.19,144.17,5.16329281]
[1728385176537,6.9352,144.19,144.16,17.3418]
[1728385176747,6.9352,144.19,144.17,5.16564157]
[1728385176909,6.9352,144.19,144.16,17.3418]
[1728385177110,6.9352,144.19,144.17,5.16565991]
[1728385177318,6.9352,144.19,144.16,17.3418]
[1728385177620,6.9352,144.19,144.17,5.1675244]
[1728385177813,6.9352,144.19,144.16,17.3418]
[1728385178032,6.9352,144.19,144.17,5.16759876]
[1728385178213,6.9357,144.18,144.14,24.2815]
[1728385178417,6.9357,144.18,144.15,11.47322043]
[1728385178737,6.9357,144.18,144.16,6.30431806]
[1728385178922,6.9357,144.18,144.16,5.16849656]
[1728385179241,6.9357,144.18,144.14,37.19703135]
[1728385179539,6.9357,144.18,144.15,7.6906549]
[1728385179735,6.9357,144.18,144.16,6.30351465]
[1728385180236,6.9357,144.18,144.15,1.38714025]
[1728385180418,6.9357,144.18,144.16,6.30423639]
[1728385180742,6.9357,144.18,144.14,37.19703135]
[1728385180914,6.9357,144.18,144.15,6.30436075]
[1728385181240,6.9357,144.18,144.16,6.30436075]
[1728385181424,6.9357,144.18,144.14,37.19703135]
[1728385181624,6.9357,144.18,144.15,7.69209112]
[1728385181826,6.9357,144.18,144.16,6.30496875]
[1728385182141,6.9357,144.18,144.15,8.32422237]
[1728385182518,6.9356,144.19,144.16,6.3050426]
[1728385182718,6.9356,144.19,144.16,1.38704344]
[1728385183433,6.9356,144.19,144.15,19.85263135]
[1728385183645,6.9356,144.19,144.16,6.30662253]
[1728385183944,6.9356,144.19,144.15,19.85263135]
[1728385184152,6.9356,144.19,144.16,6.30672202]
[1728385184342,6.9356,144.19,144.15,19.85263135]
[1728385184559,6.9356,144.19,144.16,6.30721154]
[1728385184730,6.9356,144.19,144.15,19.85263135]
[1728385185650,6.9356,144.19,144.16,1.38704503]
[1728385186634,6.9356,144.19,144.16,8.32364503]
[1728385188952,6.9356,144.19,144.16,6.9366]
[1728385189858,6.9356,144.19,144.15,19.85253135]
[1728385190156,6.9356,144.19,144.15,6.937]
[1728385193849,6.9356,144.19,144.16,1.38701251]
[1728385194154,6.9356,144.19,144.15,6.937]
[1728385197535,6.9344,144.21,144.17,24.2763]
[1728385197735,6.9344,144.21,144.18,1.38685219]
[1728385200359,17.3345,144.23,144.14,17.344]
[1728385200567,17.3359,144.21,144.14,20.0]
[1728385200766,6.936,144.18,144.14,26.9375]
[1728385200944,17.3359,144.21,144.13,18.1636215]
[1728385200945,6.9366,144.17,144.13,18.1636215]
[1728385201150,6.9359,144.18,144.14,8.32481482]
[1728385201370,6.9359,144.18,144.14,21.24034617]
[1728385201571,6.9359,144.18,144.14,37.19723135]
[1728385201775,6.9359,144.18,144.14,24.2817]
[1728385202271,17.3359,144.21,144.14,24.2817]
[1728385202272,6.9362,144.17,144.14,24.2817]
[1728385204376,15.8488,144.2,144.13,38.01715285]
[1728385204568,6.9367,144.16,144.13,18.1636215]
[1728385204961,6.9372,144.15,144.13,18.1636215]
[1728385205156,17.3385,144.19,144.13,18.1636215]
[1728385205362,6.9373,144.15,144.13,18.1636215]
[1728385205762,17.3385,144.19,144.13,18.1636215]
[1728385205972,6.9376,144.14,144.13,18.1636215]
[1728385206350,6.9373,144.15,144.13,18.1636215]
[1728385209495,15.8488,144.2,144.13,18.1636215]
[1728385209496,6.9376,144.14,144.13,18.1636215]
[1728385214995,27.06309,144.14,144.13,18.1636215]
[1728385216306,27.18858,144.14,144.13,18.1636215]
[1728385216991,20.12549,144.11,144.03,13.1037]
[1728385217181,6.9415,144.07,144.03,6.9429]
[1728385217374,6.9417,144.06,144.02,24.3007]
[1728385218194,6.9421,144.05,144.02,17.3577]
[1728385218498,20.12549,144.09,144.01,14.30406073]
[1728385218499,6.9416,144.06,144.01,14.30406073]
[1728385218704,6.9416,144.06,144.02,6.9434]
[1728385219082,6.9416,144.06,144.03,1.38847683]
[1728385219298,6.53149,144.09,144.03,1.38847683]
[1728385219299,20.0,144.08,144.03,1.38847683]
[1728385219502,6.9431,144.03,143.99,13.1577]
[1728385219700,6.9425,144.04,144.0,6.9443]
[1728385219910,6.9421,144.05,144.01,8.33245266]
[1728385220801,6.9421,144.05,144.01,6.9439]
[1728385221186,6.9421,144.05,144.01,8.33245782]
[1728385221386,6.9421,144.05,144.01,6.9439]
[1728385222617,6.941,144.08,144.04,6.9423]
[1728385223119,6.941,144.08,144.03,6.9428]
[1728385223622,6.9412,144.07,144.03,6.9428]
[1728385225414,0.12549,144.08,144.02,17.3576]
[1728385225605,6.9421,144.05,144.02,17.3576]
[1728385227808,6.9421,144.05,144.01,6.9436]
[1728385228192,6.9425,144.04,144.0,6.9443]
[1728385229311,6.943,144.03,143.99,24.306]
[1728385230316,6.9426,144.04,144.0,6.9439]
[1728385232420,15.497,144.05,143.99,17.3612]
[1728385232623,6.9427,144.04,144.0,6.9443]
[1728385232830,15.497,144.05,144.0,1.38875445]
[1728385233020,22.4392,144.05,144.01,6.9439]
[1728385233220,20.0,144.08,144.02,1.38864423]
[1728385233524,21.9264,144.09,144.06,6.9412]
[1728385233702,21.6416,144.13,144.1,6.9396]
[1728385234018,28.5801,144.13,144.09,6.94]
[1728385234516,28.5801,144.13,144.08,24.2912]
[1728385234719,28.5801,144.13,144.08,37.20673135]
[1728385234922,22.3927,144.13,144.09,6.9397]
[1728385235124,22.3927,144.13,144.08,30.26633135]
[1728385235125,15.4542,144.13,144.08,30.26633135]
[1728385235308,6.9375,144.15,144.1,6.9395]
[1728385235504,20.0,144.14,144.1,6.9395]
[1728385236507,20.0,144.15,144.1,6.9395]
[1728385236707,23.4335,144.16,144.11,6.9388]
[1728385237695,23.4335,144.16,144.12,6.9385]
[1728385238798,16.4967,144.16,144.1,14.30326931]
[1728385239026,6.9354,144.19,144.14,6.9373]
[1728385239326,0.12549,144.18,144.14,6.9373]
[1728385239535,7.06119,144.18,144.14,6.9373]
[1728385240624,6.9357,144.18,144.14,6.9373]
[1728385241303,20.0,144.19,144.14,17.3435]
[1728385241505,22.359,144.21,144.17,6.9358]
[1728385242929,20.0,144.2,144.17,6.9358]
[1728385243905,20.0,144.2,144.16,17.3414]
[1728385243906,26.9348,144.2,144.16,17.3414]
[1728385244917,26.9348,144.2,144.16,24.278]
[1728385245722,6.9348,144.2,144.16,24.278]
[1728385245913,22.359,144.21,144.16,24.278]
[1728385246115,29.2934,144.21,144.16,24.278]
[1728385246412,29.2934,144.21,144.16,17.3414]
[1728385246630,29.2934,144.21,144.17,6.9361]
[1728385252232,15.814,144.21,144.18,6.9357]
[1728385254916,22.7483,144.21,144.18,6.9357]
[1728385255143,6.9348,144.2,144.16,24.2779]
[1728385255445,6.9358,144.18,144.14,6.9373]
[1728385256242,6.9362,144.17,144.13,24.2826]
[1728385256627,6.9359,144.18,144.14,6.9376]
[1728385259430,6.9368,144.16,144.13,24.2824]
[1728385259742,6.9364,144.17,144.13,6.938]
[1728385259938,20.25098,144.2,144.12,17.3462]
[1728385259939,6.9372,144.15,144.12,17.3462]
[1728385260145,6.9372,144.15,144.11,6.939]
[1728385260146,6.9375,144.15,144.11,6.939]
[1728385260341,6.9377,144.14,144.1,6.9394]
[1728385264056,16.4815,144.16,144.09,17.35]
[1728385264239,6.9383,144.13,144.09,24.2899]
[1728385264946,6.9383,144.13,144.09,17.35]
[1728385265144,6.9378,144.14,144.11,6.939]
[1728385265740,16.4815,144.16,144.11,6.939]
[1728385265940,6.9375,144.15,144.11,6.939]
[1728385269951,6.9375,144.15,144.11,24.2867]
[1728385275857,6.9378,144.14,144.1,6.9396]
[1728385276037,20.12549,144.15,144.1,6.9396]
[1728385276242,6.9382,144.13,144.09,6.9399]
[1728385277139,16.60699,144.16,144.08,18.73829508]
[1728385277340,6.9378,144.14,144.1,6.9392]
[1728385277773,6.9378,144.14,144.11,6.939]
[1728385278456,6.9374,144.15,144.11,6.939]
[1728385281169,16.4815,144.16,144.11,17.3478]
[1728385281467,16.4815,144.16,144.13,6.9381]
[1728385282476,23.4183,144.16,144.12,6.9384]
[1728385283356,6.9365,144.17,144.14,6.9376]
[1728385284364,6.9359,144.18,144.15,6.9372]
[1728385284772,6.9359,144.18,144.14,17.344]
[1728385284773,22.5553,144.2,144.14,17.344]
[1728385284968,29.4904,144.2,144.16,6.9366]
[1728385285174,6.9353,144.19,144.15,6.937]
[1728385287264,6.9358,144.18,144.14,24.2815]
[1728385288376,29.4902,144.2,144.16,6.9366]
[1728385288759,23.2268,144.2,144.16,6.9366]
[1728385289861,6.9344,144.21,144.17,1.38726307]
[1728385290064,26.934,144.22,144.18,6.9354]
[1728385290373,26.934,144.22,144.15,12.91553135]
[1728385290374,15.0522,144.24,144.22,6.9334]
[1728385290681,6.2894,144.27,144.2,18.72307556]
[1728385290984,6.9324,144.25,144.21,6.9341]
[1728385292962,6.932,144.26,144.22,6.9337]
[1728385293863,6.9315,144.27,144.23,6.933]
[1728385294073,21.9833,144.28,144.24,6.9328]
[1728385294585,6.9311,144.28,144.24,6.9328]
[1728385294785,6.9305,144.29,144.25,6.9321]
[1728385295263,6.9303,144.3,144.25,6.9321]
[1728385295468,6.9303,144.3,144.24,17.3316]
[1728385295669,23.0622,144.31,144.24,17.3316]
[1728385296078,23.0622,144.31,144.27,6.9313]
[1728385296791,23.0622,144.31,144.26,24.2612]
[1728385298481,16.1327,144.31,144.26,24.2612]
[1728385298685,6.9301,144.3,144.26,24.2612]
[1728385299270,6.929,144.33,144.29,6.9304]
[1728385300584,6.929,144.33,144.28,24.2577]
[1728385300887,6.9291,144.32,144.28,24.2577]
[1728385306282,6.9285,144.33,144.29,8.31630758]
[1728385306493,21.9019,144.35,144.3,17.3247]
[1728385306494,22.6164,144.35,144.3,17.3247]
[1728385306791,22.6345,144.39,144.31,14.30128019]
[1728385307103,6.9266,144.37,144.33,6.9284]
[1728385307386,22.6345,144.39,144.34,6.928]
[1728385307387,7.7828897,144.38,144.34,6.928]
[1728385308292,0.8565897,144.38,144.29,17.3257]
[1728385308591,0.12549,144.37,144.3,1.38569171]
[1728385308771,0.12549,144.37,144.29,30.24123135]
[1728385309578,20.8565897,144.38,144.29,30.24123135]
[1728385309785,6.9271,144.36,144.32,6.9289]
[1728385309990,6.9271,144.36,144.32,8.31447937]
[1728385310295,20.8565897,144.38,144.33,1.38557579]
[1728385310500,6.9269,144.37,144.33,8.31397579]
[1728385310789,6.9269,144.37,144.33,6.9284]
[1728385313501,7.7829897,144.38,144.34,6.928]
[1728385317398,0.8565897,144.38,144.33,17.3211]
[1728385317600,6.9266,144.37,144.33,24.2495]
[1728385318207,0.8565897,144.38,144.33,17.3211]
[1728385318411,7.7827897,144.38,144.34,6.9279]
[1728385319392,0.8565897,144.38,144.35,8.31286024]
[1728385319581,0.8565897,144.38,144.35,6.9275]
[1728385320995,0.8565897,144.38,144.33,17.3211]
[1728385321198,6.9268,144.37,144.33,24.2496]
[1728385321388,0.8565897,144.38,144.33,17.3211]
[1728385321589,6.9274,144.36,144.32,23.5429]
[1728385322692,6.9268,144.37,144.33,8.31404369]
[1728385323789,6.9268,144.37,144.34,6.928]
[1728385324621,0.8565897,144.38,144.34,6.928]
[1728385324784,7.7828897,144.38,144.34,6.928]
[1728385324991,0.8565897,144.38,144.32,33.9363]
[1728385325303,0.8565897,144.38,144.32,24.2511]
[1728385325304,6.9274,144.36,144.32,24.2511]
[1728385327008,0.8565897,144.38,144.29,6.3639]
[1728385327300,0.8565897,144.38,144.31,6.9294]
[1728385327301,6.9281,144.34,144.31,6.9294]
[1728385328317,6.9281,144.34,144.3,6.9297]
[1728385328496,6.9277,144.35,144.31,8.31498127]
[1728385328915,6.9277,144.35,144.31,6.9293]
[1728385330289,6.9277,144.35,144.29,23.6889]
[1728385330290,0.12549,144.37,144.29,23.6889]
[1728385331414,6.9282,144.34,144.3,6.9296]
[1728385331998,6.9282,144.34,144.29,23.6889]
[1728385332193,6.9282,144.34,144.31,6.9295]
[1728385332915,0.12549,144.37,144.29,30.6191]
[1728385333097,0.12549,144.35,144.29,23.6889]
[1728385333298,6.9293,144.32,144.29,23.6889]
[1728385333924,6.9296,144.31,144.28,15.6592]
[1728385334148,29.92829367,144.38,144.28,15.6592]
[1728385334149,17.3205,144.34,144.28,15.6592]
[1728385334353,6.9298,144.31,144.28,15.6592]
[1728385334637,6.9298,144.31,144.27,6.9312]
[1728385335031,6.93,144.3,144.26,30.4885]
[1728385335548,6.9305,144.29,144.26,30.4885]
[1728385335746,0.12549,144.33,144.17,45.72667076]
[1728385335925,0.25098,144.3,144.22,24.2672]
[1728385336124,6.9323,144.26,144.22,17.3338]
[1728385336443,6.9323,144.26,144.22,24.2673]
[1728385337434,6.9316,144.27,144.22,24.2673]
[1728385337754,6.9311,144.28,144.24,6.9327]
[1728385338155,6.9314,144.27,144.23,6.9332]
[1728385338537,6.9311,144.28,144.23,6.9332]
[1728385338936,6.9315,144.27,144.23,6.9332]
[1728385339154,17.45079,144.3,144.22,17.3338]
[1728385339456,6.9321,144.26,144.22,17.3338]
[1728385339663,6.9321,144.26,144.22,21.24566783]
[1728385339866,17.45079,144.3,144.22,21.24566783]
[1728385340163,6.9315,144.27,144.23,6.9333]
[1728385340749,6.9315,144.27,144.23,8.31978879]
[1728385341466,6.931,144.28,144.24,6.9328]
[1728385342562,6.9314,144.27,144.23,6.9332]
[1728385342871,27.205109,144.31,144.24,17.3319]
[1728385343156,6.9308,144.29,144.25,6.9323]
[1728385343652,20.0,144.31,144.24,24.2646]
[1728385344154,6.9311,144.28,144.24,24.2646]
[1728385344753,6.9306,144.29,144.25,6.9323]
[1728385350770,17.322,144.33,144.26,17.3294]
[1728385351067,15.9794,144.36,144.27,6.931]
[1728385351068,6.9296,144.31,144.27,6.931]
[1728385351650,6.9301,144.3,144.26,24.2611]
[1728385352553,17.3205,144.34,144.26,17.3294]
[1728385352783,6.9304,144.29,144.26,17.3294]
[1728385353768,6.9304,144.29,144.25,29.4597]
[1728385356474,6.9304,144.29,144.26,1.38620345]
[1728385356686,44.52479475,144.35,144.25,52.77353135]
[1728385356982,44.52479475,144.35,144.27,24.259]
[1728385356983,6.9295,144.31,144.27,24.259]
[1728385357980,6.9301,144.3,144.27,17.328]
[1728385359181,6.9297,144.31,144.28,1.38605735]
[1728385359560,24.52479475,144.35,144.27,17.328]
[1728385359854,6.929,144.33,144.29,6.9303]
[1728385360580,6.929,144.33,144.3,6.9299]
[1728385360762,6.9282,144.34,144.3,6.9296]
[1728385360970,6.9282,144.34,144.3,22.1538]
[1728385361374,6.9282,144.34,144.3,29.0834]
[1728385361879,7.20282348,144.37,144.3,22.1538]
[1728385362081,18.1728897,144.38,144.31,8.31508201]
[1728385362273,6.9276,144.35,144.31,6.9294]
[1728385362466,25.37462038,144.38,144.32,8.31453744]
[1728385362673,6.927,144.37,144.33,8.31405705]
[1728385363273,0.8565897,144.38,144.34,6.9276]
[1728385363594,6.9266,144.37,144.34,6.9276]
[1728385363755,6.9266,144.37,144.33,25.63415705]
[1728385363960,6.9266,144.37,144.33,24.2486]
[1728385364382,6.9272,144.36,144.33,17.3202]
[1728385364686,6.9267,144.37,144.34,1.38551639]
[1728385364868,7.7828897,144.38,144.34,8.31331639]
[1728385365077,7.7828897,144.38,144.34,6.9278]
[1728385366067,7.7828897,144.38,144.35,1.38536508]
[1728385366373,0.8565897,144.38,144.35,8.31276508]
[1728385366965,0.8565897,144.38,144.35,6.9274]
[1728385367174,7.7829897,144.38,144.34,6.9279]
[1728385368688,6.9268,144.37,144.33,24.2486]
[1728385374468,7.7828897,144.38,144.34,6.9276]
[1728385375493,6.9266,144.37,144.34,6.9276]
[1728385375693,6.9266,144.37,144.33,17.3202]
[1728385375902,6.9266,144.37,144.33,24.2485]
[1728385377187,0.8565897,144.38,144.35,6.9274]
[1728385377499,0.8565897,144.38,144.36,1.38522902]
[1728385377801,0.8565897,144.38,144.36,8.31212902]